[Event "VIII Open Semana Santa 2024"]
[Site "San Vicente del Raspeig"]
[Date "2024.03.30"]
[Round "6.8"]
[White "Bora, Safal"]
[Black "Minzer, Claudio Javier"]
[Result "0-1"]
[ECO "A50"]
[WhiteElo "2490"]
[BlackElo "2398"]
[Annotator "TA"]
[PlyCount "144"]
[EventDate "2024.03.27"]
[EventType "swiss"]
[EventCountry "ESP"]
[SourceTitle "playchess.com"]
[Source "ChessBase"]
[SourceQuality "1"]
[TimeControl "5400+30"]

{[%evp 9,144,12,17,-28,-33,-39,-10,-5,0,0,12,0,0,0,0,-16,0,0,0,0,0,0,0,2,6,0,0,0,0,0,48,23,53,44,135,117,106,26,32,25,0,0,0,4,63,60,51,15,23,16,15,0,0,0,0,0,0,0,0,-16,-10,-40,0,0,0,0,0,-58,0,-51,0,-91,-13,-88,-13,-13,0,0,0,-210,-212,-238,22,-8,0,0,0,0,0,0,0,-108,-119,-148,-148,-178,-121,-206,-205,-203,-226,-218,-213,-196,0,-1079,-1062,-1100,-657,-1144,-1133,-1097,-1086,-1060,-947,-1273,-1208,-29978,-29968,-29969,-29967,-29980,-29981,-29981,-29982,-29982,-29983,-29982,-29983,-29985,-29982,-29983,-29982,-29982,-29979,-29984,-29984]} 1. d4 {[%emt 0:01:31]} Nf6 {[%emt 0:00:13]} 2. c4 {[%emt 0:00:07]} e6 {[%emt 0:00:39]} 3. Bf4 {[%emt 0:00:23]} d5 {[%emt 0:02:04]} 4. cxd5 {[%emt 0:01:03]} Nxd5 {[%emt 0:00:34]} 5. Bg3 {[%emt 0:00:11]} c5 {[%emt 0:01:03]} 6. e4 {[%emt 0:00:17]} Nf6 {[%emt 0:00:13][%csl LRd4,LRe4]} 7. Nd2 {[%emt 0:00:17]} cxd4 {[%emt 0:00:44]} 8. e5 {[%emt 0:00:24] The position is equal.} Nd5 {[%emt 0:00:07]} 9. Ngf3 {[%emt 0:00:27]} Be7 {[%emt 0:00:59]} 10. Bd3 {[%emt 0:01:34][%cal Oa1c1]} Nd7 {[%emt 0:02:26]} 11. O-O {[%emt 0:06:15]} Nc5 {[%emt 0:01:44]} 12. Bb1 {[%emt 0:03:55]} Bd7 {[%emt 0:13:30]} 13. Nxd4 {[%emt 0:21:55]} Ba4 {[%emt 0:03:40]} 14. Qf3 {[%emt 0:08:34]} h5 {[%emt 0:14:14]} 15. h3 {[%emt 0:05:43]} Nb4 {[%emt 0:06:24]} 16. Qe3 {[%emt 0:03:19]} Nd5 {[%emt 0:03:09]} 17. Qf3 {[%emt 0:01:00]} Nb4 {[%emt 0:00:39]} 18. Qe3 {[%emt 0:05:27]} Nd5 {[%emt 0:00:37]} 19. Qe2 {[%emt 0:05:22]} Nf4 {[%emt 0:02:59]} 20. Bxf4 $14 {[%emt 0:00:06]} Qxd4 {[%emt 0:00:05]} 21. Ne4 {[%emt 0:00:33] Be3 would now be deadly.} a6 {[%emt 0:09:56]} (21... Nd7 $14) 22. Be3 $1 $16 {[%emt 0:04:43]} Qxe5 {[%emt 0:08:25]} 23. Bxc5 {[%emt 0:04:12]} (23. f4 $16 Qd5 24. Nc3) 23... Bxc5 {[%emt 0:00:09]} 24. Qc4 {[%emt 0:00:04][%csl LRa4,LRc5]} Bb5 {[%emt 0:08:24]} 25. Qxc5 {[%emt 0:00:07]} Qxc5 {[%emt 0:00:02]} 26. Nxc5 {[%emt 0:00:04]} Bxf1 {[%emt 0:00:04]} 27. Kxf1 {[%emt 0:00:02]} Rc8 {[%emt 0:00:12]} 28. Nb3 {[%emt 0:03:27]} (28. Nxb7 $5 Rc1+ $8 29. Ke2 $11) 28... f5 {[%emt 0:00:46]} 29. Bd3 {[%emt 0:02:23]} Ke7 {[%emt 0:00:14]} 30. Re1 {[%emt 0:03:38]} Kf6 {[%emt 0:00:22]} 31. f4 {[%emt 0:01:27]} Rhd8 {[%emt 0:00:24]} 32. Re3 {[%emt 0:00:13]} h4 {[%emt 0:00:22]} 33. Ke2 {[%emt 0:00:25]} Rd5 {[%emt 0:00:44]} 34. Kd2 {[%emt 0:01:20]} a5 {[%emt 0:01:35][%mdl 1024] Black has compensation.} 35. Nc1 {[%emt 0:00:38]} b5 {[%emt 0:02:28]} 36. Ne2 {[%emt 0:00:17]} b4 {[%emt 0:00:09]} 37. b3 {[%emt 0:01:53]} Rcd8 {[%emt 0:00:55]} 38. Kc2 {[%emt 0:00:48]} (38. g3 $1 $11) 38... R8d6 {[%emt 0:00:50]} (38... g5 $15) 39. Rf3 {[%emt 0:02:13]} (39. g3 $11) 39... Rd8 {[%emt 0:00:41]} ({Black should play} 39... g5 $15) 40. Nc1 {[%emt 0:00:42]} (40. Re3 $11) 40... Rd4 {[%emt 0:01:44]} ({Better is} 40... g5 $1 $17) 41. Rf2 {[%emt 0:00:51]} (41. Ne2 $11 R4d6 42. g3) 41... R8d6 {[%emt 0:02:23] Black is more active.} (41... g5 $17 42. fxg5+ Kxg5) 42. Bc4 $11 {[%emt 0:01:03]} Re4 {[%emt 0:01:05]} 43. Nd3 {[%emt 0:01:14]} Red4 {[%emt 0:01:46]} 44. Ne5 $2 {[%emt 0:02:23]} (44. Re2 $11 {and White has nothing to worry.}) 44... g5 $19 {[%emt 0:03:09]} 45. Nd3 {[%emt 0:00:08]} g4 {[%emt 0:00:10]} (45... gxf4 $19 {...e5 is the strong threat.} 46. Rxf4 e5) 46. Re2 {[%emt 0:03:18]} g3 {[%emt 0:00:24]} 47. Kd2 {[%emt 0:02:13]} Re4 {[%emt 0:01:52]} 48. Re3 {[%emt 0:00:35]} Red4 {[%emt 0:03:08]} 49. Ke2 {[%emt 0:00:22]} Rc6 {[%emt 0:01:35]} 50. Re5 {[%emt 0:00:41] [#]} (50. Kf3 $11 {keeps the balance.}) 50... Rxf4 $3 $17 {[%emt 0:01:14][%cal Of4f2][%mdl 512]} 51. Rxa5 {[%emt 0:00:17]} (51. Re3 Rd4) 51... Re4+ {[%emt 0:00:11]} 52. Kd2 {[%emt 0:03:50][%cal Oa2a3]} Rd6 {[%emt 0:00:08]} (52... f4 $1 $19 {[%cal Rf4f3] Threatens to win with ...f3!} 53. Ra8 (53. Nxb4 $2 f3 $19) 53... Kg7 54. Ra7+ (54. Nxb4 $2 Rd6+ 55. Kc3 f3 $19) 54... Kf6) 53. a4 {[%emt 0:01:04]} (53. a3 $17 {might work better.} bxa3 54. Rxa3) 53... f4 $1 $19 {[%emt 0:02:08]} ({Resist} 53... bxa3 54. Rxa3 Rd8 55. Bb5 $15) 54. Ra8 {[%emt 0:01:03] [#]} Kg7 $1 {[%emt 0:00:49]} 55. Ra7+ {[%emt 0:00:19]} Kg6 {[%emt 0:00:46][%cal Of4f3]} 56. Ra8 {[%emt 0:00:05] [#]} Kg7 {[%emt 0:00:10] Repels Rg8+} ({Black should try} 56... Kh7 $1 $19 57. Ra7+ Kh6) 57. Ra6 $2 {[%emt 0:02:03][%mdl 8192]} (57. Ra7+ $11 Kh6 58. Ra8) 57... Rxa6 {[%emt 0:00:51]} 58. Bxa6 {[%emt 0:00:03] [#]} f3 $1 {[%emt 0:00:22][%mdl 512]} 59. gxf3 {[%emt 0:00:55][%cal Od3e1]} g2 {[%emt 0:00:19]} 60. fxe4 {[%emt 0:00:17]} g1=Q {[%emt 0:00:05] aiming for ...Qh2+.} (60... g1=B $2 {loses.} 61. a5 (61. Nxb4 Kf8 $18) 61... Kf6 62. Bb7 $18 (62. Nxb4 Ke5 $18)) 61. Ke2 {[%emt 0:00:33]} Qg3 {[%emt 0:00:20]} 62. Bc4 {[%emt 0:00:05]} Qxh3 {[%emt 0:00:11]} 63. a5 {[%emt 0:00:26]} Qg4+ {[%emt 0:00:24] Black mates.} 64. Ke3 {[%emt 0:00:30]} h3 {[%emt 0:00:20]} 65. a6 {[%emt 0:00:17]} h2 {[%emt 0:00:30]} 66. Nf2 {[%emt 0:00:04]} Qg1 {[%emt 0:00:33]} 67. Ke2 {[%emt 0:00:41]} h1=Q {[%emt 0:00:38]} 68. Nxh1 {[%emt 0:00:04]} Qxh1 {[%emt 0:00:05]} 69. Ke3 {[%emt 0:00:37]} e5 {[%emt 0:00:11]} 70. Be2 {[%emt 0:00:52]} Qc1+ {[%emt 0:00:21]} 71. Kf2 {[%emt 0:00:20]} Qb2 {[%emt 0:00:29]} 72. Kf1 {[%emt 0:00:46]} Qxb3 {[%emt 0:00:13] Weighted Error Value: White=0.32/Black=0.24 (precise) .  Loses game:     	White=2     	---        Missed win:     	---       	Black=2      Mistake:       	White=7     	Black=7      Inaccurate:     	White=3     	Black=2      OK:         	White=15    	Black=20     Best:        	White=5     	Black=1      Strong:       	White=1     	Black=2      Brilliant:      	---       	Black=1} 0-1

[Event "VIII Open Semana Santa 2024"]
[Site "San Vicente del Raspeig"]
[Date "2024.03.30"]
[Round "6.9"]
[White "Stribuk, Artiom"]
[Black "Xiao, Tong(Qd)"]
[Result "1/2-1/2"]
[ECO "A37"]
[WhiteElo "2418"]
[BlackElo "2484"]
[Annotator "TA"]
[PlyCount "62"]
[EventDate "2024.03.27"]
[EventType "swiss"]
[EventCountry "ESP"]
[SourceTitle "playchess.com"]
[Source "ChessBase"]
[SourceQuality "1"]
[TimeControl "5400+30"]

{[%evp 11,62,2,22,0,0,-3,13,0,18,15,29,33,43,45,39,4,18,0,46,41,60,42,70,0,6,0,0,-19,-14,-21,-19,-17,-13,-22,-16,-13,-13,0,0,0,0,0,-8,-3,-12,0,0,0,0,0,0,0,0]} 1. c4 {[%emt 0:00:03]} c5 {[%emt 0:00:13]} 2. Nf3 {[%emt 0:00:10]} Nc6 {[%emt 0:00:06]} 3. g3 {[%emt 0:00:11]} g6 {[%emt 0:00:14]} 4. Bg2 {[%emt 0:00:10]} Bg7 {[%emt 0:00:07]} 5. Nc3 {[%emt 0:00:07]} d6 {[%emt 0:00:15]} 6. O-O {[%emt 0:00:16]} Bf5 {[%emt 0:00:21]} 7. h3 {[%emt 0:00:05]} Nf6 {[%emt 0:00:30]} 8. d3 {[%emt 0:02:02]} O-O {[%emt 0:02:16]} 9. a3 {[%emt 0:02:19]} Qc8 {[%emt 0:03:45]} 10. Kh2 {[%emt 0:00:18]} h6 {[%emt 0:01:49]} 11. Rb1 {[%emt 0:09:13]} Nd4 {[%emt 0:10:34]} 12. Nxd4 {[%emt 0:11:44]} cxd4 {[%emt 0:00:06]} 13. e4 {[%emt 0:00:53]} Bd7 {[%emt 0:09:19]} 14. Ne2 {[%emt 0:06:52]} Ne8 {[%emt 0:04:25]} (14... e5 $11 {is more appropriate.}) 15. b4 $14 {[%emt 0:01:37]} Nc7 {[%emt 0:06:49][%cal Be8c7,Bc7b5,Bb5c3][%mdl 32]} 16. f4 {[%emt 0:10:05]} b5 {[%emt 0:12:40]} 17. Bb2 {[%emt 0:07:28]} ({White should play} 17. c5 $14) 17... e5 $11 {[%emt 0:00:40] The position is equal.} 18. cxb5 {[%emt 0:06:48]} Nxb5 {[%emt 0:02:20]} 19. a4 {[%emt 0:00:05]} Nc3 {[%emt 0:06:14]} 20. Bxc3 {[%emt 0:00:50]} dxc3 {[%emt 0:00:01]} 21. Rc1 {[%emt 0:03:57]} exf4 {[%emt 0:00:39]} 22. gxf4 {[%emt 0:01:11][%cal Oe2c3]} Rb8 {[%emt 0:00:56]} 23. b5 {[%emt 0:04:08][%cal Oe2c3]} a6 {[%emt 0:01:04]} 24. Nxc3 {[%emt 0:02:51]} Bxc3 {[%emt 0:01:01] This pair of bishops is nice.} 25. Qb3 {[%emt 0:00:05]} axb5 {[%emt 0:00:11]} 26. axb5 {[%emt 0:00:02]} Rxb5 {[%emt 0:02:54]} 27. Qxc3 {[%emt 0:00:06]} Qxc3 {[%emt 0:03:13]} 28. Rxc3 {[%emt 0:00:02]} Rc8 {[%emt 0:00:14]} 29. Rxc8+ {[%emt 0:03:38]} Bxc8 {[%emt 0:00:01]} 30. Rc1 {[%emt 0:00:08]} Rc5 {[%emt 0:01:55]} 31. Rxc5 {[%emt 0:02:06]} dxc5 {[%emt 0:00:05] Weighted Error Value: White=0.10 (very precise) /Black=0.08 (flawless) .  Mistake:       	White=1     	Black=1      Inaccurate:     	White=1     	Black=1      OK:         	White=14    	Black=8} 1/2-1/2

[Event "VIII Open Semana Santa 2024"]
[Site "San Vicente del Raspeig"]
[Date "2024.03.30"]
[Round "6.10"]
[White "Merario Alarcon, Andres"]
[Black "Diaz Perez, Michel Alejandro"]
[Result "1/2-1/2"]
[ECO "E42"]
[WhiteElo "2401"]
[BlackElo "2464"]
[Annotator "RC"]
[PlyCount "126"]
[EventDate "2024.03.27"]
[EventType "swiss"]
[EventCountry "ESP"]
[SourceTitle "playchess.com"]
[Source "ChessBase"]
[SourceQuality "1"]
[TimeControl "5400+30"]

1. d4 {[%emt 0:00:04]} Nf6 {[%emt 0:00:19]} 2. c4 {[%emt 0:00:08]} e6 {[%emt 0:00:05]} 3. Nc3 {[%emt 0:00:33]} Bb4 {[%emt 0:00:08]} 4. e3 {[%emt 0:00:25]} b6 {[%emt 0:00:16]} 5. Nge2 {[%emt 0:00:14]} c5 {[%emt 0:02:50]} 6. a3 {[%emt 0:00:19]} Ba5 {[%emt 0:00:06]} 7. Rb1 {[%emt 0:00:30]} Na6 {[%emt 0:00:13]} 8. g3 {[%emt 0:00:57]} Bb7 {[%emt 0:07:35]} 9. d5 {[%emt 0:00:19]} exd5 {[%emt 0:00:54]} 10. Bg2 {[%emt 0:01:20]} O-O {[%emt 0:04:54]} 11. O-O {[%emt 0:02:38]} Bxc3 {[%emt 0:01:18]} 12. Nxc3 {[%emt 0:00:17]} Nc7 {[%emt 0:01:05]} 13. cxd5 {[%emt 0:00:27]} d6 {[%emt 0:00:10]} 14. e4 {[%emt 0:00:42]} Nd7 {[%emt 0:02:05]} 15. f4 {[%emt 0:11:32]} f6 {[%emt 0:05:47]} 16. g4 {[%emt 0:07:03]} Re8 {[%emt 0:08:25]} 17. h4 {[%emt 0:05:53]} b5 {[%emt 0:17:30]} 18. b4 {[%emt 0:03:10]} cxb4 {[%emt 0:03:14]} 19. axb4 {[%emt 0:00:34]} Nb6 {[%emt 0:00:05]} 20. Qd4 {[%emt 0:17:06]} Nc4 {[%emt 0:12:02]} 21. g5 {[%emt 0:02:09]} a6 {[%emt 0:02:05]} 22. Nd1 {[%emt 0:05:44]} Qe7 {[%emt 0:03:47]} 23. Rb3 {[%emt 0:04:15]} f5 {[%emt 0:03:24]} 24. exf5 {[%emt 0:04:59]} Qf7 {[%emt 0:00:11]} 25. Rd3 {[%emt 0:01:06]} Qxf5 {[%emt 0:01:01]} 26. Nf2 {[%emt 0:00:58]} Qf7 {[%emt 0:03:04]} 27. Bf3 {[%emt 0:03:52]} Bc8 {[%emt 0:01:41]} 28. h5 {[%emt 0:01:16]} Bf5 {[%emt 0:00:08]} 29. Rdd1 {[%emt 0:04:10]} Re7 {[%emt 0:00:41]} 30. Rfe1 {[%emt 0:02:52]} Rae8 {[%emt 0:02:23]} 31. Kf1 {[%emt 0:02:39]} Bc2 {[%emt 0:01:48]} 32. Rxe7 {[%emt 0:06:28]} Qxe7 {[%emt 0:00:17]} 33. Ng4 {[%emt 0:00:17]} Be4 {[%emt 0:09:04]} 34. Bxe4 {[%emt 0:04:12]} Qxe4 {[%emt 0:00:01]} 35. Qxe4 {[%emt 0:00:06]} Rxe4 {[%emt 0:00:02]} 36. h6 {[%emt 0:00:18]} Nb6 {[%emt 0:00:40]} 37. hxg7 {[%emt 0:00:58]} Kxg7 {[%emt 0:00:35]} 38. Nf6 {[%emt 0:01:38]} Rxb4 {[%emt 0:00:54]} 39. Ke2 {[%emt 0:01:41]} Rb1 {[%emt 0:04:23]} 40. Rh1 {[%emt 0:00:22]} Nbxd5 {[%emt 0:01:30]} 41. Rxh7+ {[%emt 0:00:23]} Kg6 {[%emt 0:00:01]} 42. Rh6+ {[%emt 0:00:18]} Kf5 {[%emt 0:00:06]} 43. Nxd5 {[%emt 0:00:38]} Nxd5 {[%emt 0:00:02]} 44. Rxd6 {[%emt 0:02:49]} Rxc1 {[%emt 0:00:46]} 45. Rxd5+ {[%emt 0:00:06]} Kxf4 {[%emt 0:00:07]} 46. g6 {[%emt 0:01:31]} Rc6 {[%emt 0:02:30]} 47. g7 {[%emt 0:00:18]} Rg6 {[%emt 0:00:02]} 48. Rd6 {[%emt 0:00:40]} Rxg7 {[%emt 0:00:22]} 49. Rxa6 {[%emt 0:00:06]} Rd7 {[%emt 0:00:06]} 50. Re6 {[%emt 0:01:12]} Rd4 {[%emt 0:00:30]} 51. Rh6 {[%emt 0:01:26]} Ke4 {[%emt 0:00:53]} 52. Rh4+ {[%emt 0:01:25]} Kd5 {[%emt 0:00:04]} 53. Rxd4+ {[%emt 0:01:07]} Kxd4 {[%emt 0:00:01]} 54. Kd2 {[%emt 0:00:01]} Kc4 {[%emt 0:01:10]} 55. Kc2 {[%emt 0:00:05]} Kb4 {[%emt 0:00:06]} 56. Kb2 {[%emt 0:00:05]} Ka4 {[%emt 0:00:03]} 57. Ka2 {[%emt 0:00:10]} b4 {[%emt 0:00:05]} 58. Kb2 {[%emt 0:00:28]} b3 {[%emt 0:00:03]} 59. Kb1 {[%emt 0:00:15]} Kb4 {[%emt 0:00:10]} 60. Kb2 {[%emt 0:00:18]} Kc4 {[%emt 0:00:02]} 61. Kb1 {[%emt 0:00:17]} Kc3 {[%emt 0:00:04]} 62. Kc1 {[%emt 0:00:07]} b2+ {[%emt 0:00:01]} 63. Kb1 {[%emt 0:00:07]} Kb3 {[%emt 0:00:02]} 1/2-1/2

[Event "VIII Open Semana Santa 2024"]
[Site "San Vicente del Raspeig"]
[Date "2024.03.30"]
[Round "6.11"]
[White "Marin, Mihail"]
[Black "Niedbala, Bartlomiej"]
[Result "1/2-1/2"]
[ECO "A14"]
[WhiteElo "2456"]
[BlackElo "2388"]
[Annotator "TA"]
[PlyCount "118"]
[EventDate "2024.03.27"]
[EventType "swiss"]
[EventCountry "ESP"]
[SourceTitle "playchess.com"]
[Source "ChessBase"]
[SourceQuality "1"]
[TimeControl "5400+30"]

{[%evp 20,118,-12,0,0,0,16,9,0,9,18,-21,0,-22,0,-2,0,-5,0,0,0,14,0,0,7,0,0,-27,-16,-21,-16,-9,0,-35,-39,-47,-47,-44,-28,-32,-45,-33,50,0,42,43,40,49,45,43,41,39,39,54,45,0,0,0,0,-1,0,0,0,0,0,0,0,-23,-9,-15,0,0,0,0,0,0,0,0,0,0,0,0,0,0,0,0,0,0,0,0,0,0,0,0,0,0,0,0,0,0,0]} 1. Nf3 {[%emt 0:00:03]} d5 {[%emt 0:00:17]} 2. g3 {[%emt 0:00:11]} Nf6 {[%emt 0:00:09]} 3. Bg2 {[%emt 0:00:06]} e6 {[%emt 0:00:05]} 4. O-O {[%emt 0:00:14]} Be7 {[%emt 0:00:04]} 5. c4 {[%emt 0:00:35]} O-O {[%emt 0:00:08]} 6. b3 {[%emt 0:01:09]} c5 {[%emt 0:00:15]} 7. Bb2 {[%emt 0:01:14]} d4 {[%emt 0:02:34]} 8. e3 {[%emt 0:07:45]} Nc6 {[%emt 0:00:25]} 9. exd4 {[%emt 0:00:04]} cxd4 {[%emt 0:00:07]} 10. Re1 {[%emt 0:00:04]} Re8 {[%emt 0:05:07]} 11. d3 {[%emt 0:02:30]} a5 {[%emt 0:16:01]} 12. Nbd2 {[%emt 0:02:12]} Bf8 {[%emt 0:10:03]} 13. Ne5 {[%emt 0:01:41]} Nxe5 {[%emt 0:00:17]} 14. Rxe5 {[%emt 0:00:04]} Nd7 {[%emt 0:00:27]} 15. Re1 {[%emt 0:01:01]} e5 {[%emt 0:01:50][%cal Oa5a4]} 16. a3 {[%emt 0:01:58]} Ra6 {[%emt 0:09:15]} 17. Rb1 {[%emt 0:00:30]} Nc5 {[%emt 0:04:46]} 18. Ne4 {[%emt 0:03:27]} Ne6 {[%emt 0:00:30]} 19. Bc1 {[%emt 0:00:42]} Bd7 {[%emt 0:06:37]} 20. b4 {[%emt 0:02:22]} axb4 {[%emt 0:00:20]} 21. axb4 {[%emt 0:00:06]} b5 {[%emt 0:08:12]} 22. c5 {[%emt 0:03:53]} Bc6 {[%emt 0:01:47]} 23. Nd2 {[%emt 0:00:10]} Bxg2 {[%emt 0:03:23]} 24. Kxg2 {[%emt 0:00:05]} Qd5+ {[%emt 0:03:10]} 25. Qf3 {[%emt 0:00:30]} Qxf3+ {[%emt 0:00:41]} 26. Nxf3 {[%emt 0:00:59]} f6 {[%emt 0:00:07]} 27. Nd2 {[%emt 0:00:24]} Rea8 {[%emt 0:01:44]} 28. Nb3 {[%emt 0:05:21]} Nd8 {[%emt 0:01:58]} 29. f4 {[%emt 0:00:55]} Nc6 {[%emt 0:01:54]} 30. Bd2 {[%emt 0:00:41]} Kf7 {[%emt 0:04:04]} (30... exf4 $15 31. gxf4 Ra4) 31. Na5 {[%emt 0:07:01]} (31. fxe5 $1 $14 Ra2 32. e6+ Kg6 33. Kf3) 31... Nxa5 {[%emt 0:05:20]} 32. bxa5 {[%emt 0:00:06]} Rb8 {[%emt 0:03:15]} 33. fxe5 {[%emt 0:02:22]} Bxc5 {[%emt 0:00:28]} 34. Rec1 {[%emt 0:00:12] Against b4} Bf8 {[%emt 0:03:34]} 35. Rc7+ {[%emt 0:00:43]} Kg6 {[%emt 0:00:32]} 36. exf6 {[%emt 0:04:07]} gxf6 {[%emt 0:01:33]} 37. Bb4 {[%emt 0:07:43]} (37. Rd7 $14 {feels stronger.}) 37... Bxb4 $11 {[%emt 0:01:01]} 38. Rxb4 {[%emt 0:00:03]} Rxa5 {[%emt 0:00:30][%mdl 4096] Endgame. KRR-KRR} 39. Rc5 {[%emt 0:00:06]} Ra4 {[%emt 0:01:17]} 40. Rbxb5 {[%emt 0:00:25]} Rxb5 {[%emt 0:00:27]} 41. Rxb5 {[%emt 0:00:05] KR-KR} Ra3 {[%emt 0:00:16]} 42. Rd5 {[%emt 0:01:27]} Rxd3 {[%emt 0:00:13]} 43. Rd7 {[%emt 0:00:07]} h5 {[%emt 0:01:18]} 44. h4 {[%emt 0:00:17] The position is equal.} Rd1 {[%emt 0:02:35]} 45. Rd5 {[%emt 0:00:18]} d3 {[%emt 0:00:56]} 46. Kf3 {[%emt 0:02:35]} d2 {[%emt 0:00:35]} 47. Kg2 {[%emt 0:00:20] Prevents Rf1} Kf7 {[%emt 0:00:15]} 48. Rd7+ {[%emt 0:00:24]} Ke6 {[%emt 0:00:03]} 49. Rd8 {[%emt 0:00:05]} Ke5 {[%emt 0:00:25]} 50. Re8+ {[%emt 0:00:21]} Kd4 {[%emt 0:00:21]} (50... Kd6 $5 51. Rd8+ $8 Ke6 $11) 51. Rd8+ {[%emt 0:00:06]} Ke4 {[%emt 0:00:20]} (51... Kc3 $5 52. Rc8+ $8 Kd4 53. Rd8+ Ke4 $11) 52. Re8+ {[%emt 0:00:06]} Kf5 {[%emt 0:00:03] [#] ( -> ...Rb1)} (52... Kd3 $5 53. Rd8+ $8 Ke4 $11) 53. Rd8 {[%emt 0:00:05]} Ke6 {[%emt 0:01:30]} 54. Rd3 $1 {[%emt 0:04:24]} f5 {[%emt 0:00:28]} 55. Rd8 {[%emt 0:01:01]} f4 {[%emt 0:00:50]} 56. gxf4 {[%emt 0:00:08]} Kf5 {[%emt 0:00:05]} 57. Rd7 {[%emt 0:00:48]} Kg4 {[%emt 0:01:35]} 58. f5 {[%emt 0:00:28]} Kxf5 {[%emt 0:00:20]} 59. Kf2 {[%emt 0:01:05]} Ke5 {[%emt 0:00:30] Weighted Error Value: White=0.07 (flawless) /Black=0.06 (flawless) .  Mistake:       	White=2     	Black=1      Inaccurate:     	White=3     	Black=1      OK:         	White=19    	Black=20     Best:        	White=4     	Black=1      Strong:       	White=1     	---} 1/2-1/2